fUST/lending_fUST_20241228
["ID","MTS","AMOUNT","RATE_DAILY","PERIOD"]
[346893202,1735344640917,-166.461482,0.00020235,2]
[346893204,1735344640927,-721.75048209,0.00020248,2]
[346893206,1735344640936,-6593.65551068,0.0002026,7]
[346893208,1735344640946,-343.73013361,0.00020263,2]
[346893209,1735344640955,-721.75048209,0.00020264,2]
[346893211,1735344640964,-206.99,0.00020265,2]
[346893213,1735344640973,-167.1,0.00020265,2]
[346893215,1735344640982,-1200.0,0.00020268,2]
[346893217,1735344640993,-499.0,0.00020273,2]
[346893219,1735344641002,-150.333,0.00020274,2]
[346893221,1735344641011,-721.75048209,0.00020281,2]
[346893223,1735344641020,-721.75048209,0.00020297,2]
[346893225,1735344641029,-2000.0,0.000203,2]
[346893227,1735344641038,-275685.6321009,0.000203,30]
[346893229,1735344641047,-1386.619326,0.000203,2]
[346893231,1735344641056,-151.0,0.000203,2]
[346893233,1735344641066,-1386.619326,0.000203,2]
[346893235,1735344641075,-155.320478,0.000203,2]
[346893237,1735344641084,-155.320478,0.000203,2]
[346893239,1735344641093,-151.0,0.000203,2]
[346893241,1735344641102,-151.0,0.000203,2]
[346893243,1735344641111,-151.0,0.000203,2]
[346893245,1735344641120,-506.198995,0.000203,2]
[346893247,1735344641130,-618.0,0.000203,2]
[346893249,1735344641140,-506.198995,0.000203,2]
[346893251,1735344641149,-177.882791,0.000203,2]
[346893253,1735344641159,-177.882791,0.000203,2]
[346893255,1735344641168,-227.367421,0.000203,2]
[346893257,1735344641179,-213.880477,0.000203,2]
[346893259,1735344641188,-213.880477,0.000203,2]
[346893261,1735344641197,-199.105615,0.000203,2]
[346893263,1735344641207,-199.105615,0.000203,2]
[346893265,1735344641218,-182.262766,0.000203,2]
[346893267,1735344641229,-182.262766,0.000203,2]
[346893269,1735344641240,-151.0,0.000203,2]
[346893271,1735344641249,-151.0,0.000203,2]
[346893273,1735344641259,-151.0,0.000203,2]
[346893275,1735344641269,-168.050062,0.000203,2]
[346893277,1735344641279,-168.050062,0.000203,2]
[346893279,1735344641289,-533.455618,0.000203,2]
[346893281,1735344641299,-533.455618,0.000203,2]
[346893283,1735344641309,-155.629017,0.000203,2]
[346893285,1735344641318,-151.0,0.000203,2]
[346893287,1735344641328,-352.3665978,0.00020301,2]
[346893288,1735344641338,-153.4628105,0.00020301,2]
[346893289,1735344641349,-153.4628105,0.00020301,2]
[346893290,1735344641358,-352.3665978,0.00020301,2]
[346893291,1735344641368,-214.2645371,0.00020301,2]
[346893292,1735344641378,-153.4628105,0.00020301,2]
[346893293,1735344641388,-352.3665978,0.00020301,2]
[346893294,1735344641398,-153.4628105,0.00020301,2]
[346893295,1735344641408,-214.2645371,0.00020301,2]
[346893296,1735344641418,-209.3093731,0.00020301,2]
[346893297,1735344641427,-153.254324,0.00020301,2]
[346893298,1735344641438,-153.0,0.00020301,2]
[346893299,1735344641447,-306.0,0.00020301,2]
[346893300,1735344641457,-153.0,0.00020301,2]
[346893301,1735344641466,-214.0803221,0.00020301,2]
[346893302,1735344641475,-153.0,0.00020301,2]
[346893303,1735344641484,-704.571619,0.00020301,2]
[346893304,1735344641495,-450.8587857,0.00020301,2]
[346893305,1735344641505,-153.4903954,0.00020301,2]
[346893307,1735344641514,-384.059488,0.00020301,2]
[346893309,1735344641523,-153.0000001,0.00020301,2]
[346893311,1735344641533,-490.2795773,0.00020301,2]
[346893313,1735344641542,-155.0,0.00020313,2]
[346893314,1735344641552,-721.75048209,0.00020314,2]
[346893316,1735344641561,-286.559039,0.00020315,2]
[346893318,1735344641571,-151.0,0.00020315,2]
[346893320,1735344641581,-151.0,0.00020315,2]
[346893322,1735344641594,-151.651175,0.00020315,2]
[346893324,1735344641603,-151.0,0.00020315,2]
[346893326,1735344641613,-151.0,0.00020315,2]
[346893328,1735344641623,-151.0,0.00020315,2]
[346893330,1735344641633,-151.0,0.00020315,2]
[346893332,1735344641642,-166.825452,0.00020315,2]
[346893334,1735344641651,-166.461482,0.00020315,2]
[346893336,1735344641662,-166.461482,0.00020315,2]
[346893338,1735344641671,-166.461482,0.00020315,2]
[346893340,1735344641680,-166.461482,0.00020315,2]
[346893342,1735344641689,-166.461482,0.00020315,2]
[346893344,1735344641699,-166.461482,0.00020315,2]
[346893346,1735344641708,-166.461482,0.00020315,2]
[346893348,1735344641718,-166.461482,0.00020315,2]
[346893350,1735344641727,-166.461482,0.00020315,2]
[346893352,1735344641737,-166.461482,0.00020315,2]
[346893354,1735344641748,-166.461482,0.00020315,2]
[346893356,1735344641757,-166.461482,0.00020315,2]
[346893358,1735344641767,-166.461482,0.00020315,2]
[346893360,1735344641776,-166.461482,0.00020315,2]
[346893362,1735344641785,-166.461482,0.00020315,2]
[346893364,1735344641794,-166.461482,0.00020315,2]
[346893366,1735344641804,-166.461482,0.00020315,2]
[346893368,1735344641813,-166.461477,0.00020315,2]
[346893370,1735344641823,-244.220757,0.00020315,2]
[346893372,1735344641832,-244.220757,0.00020315,2]
[346893374,1735344641841,-273.599115,0.00020315,2]
[346893376,1735344641850,-273.599115,0.00020315,2]
[346893378,1735344641859,-476.428444,0.00020315,2]
[346893380,1735344641868,-151.0,0.00020315,2]
[346893382,1735344641877,-151.0,0.00020315,2]
[346893384,1735344641887,-297.435777,0.00020315,2]
[346893386,1735344641897,-151.0,0.00020315,2]
[346893388,1735344641906,-151.0,0.00020315,2]
[346893390,1735344641915,-151.0,0.00020315,2]
[346893392,1735344641924,-151.0,0.00020315,2]
[346893394,1735344641933,-835.55567,0.00020315,2]
[346893396,1735344641943,-835.55567,0.00020315,2]
[346893398,1735344641952,-151.0,0.00020315,2]
[346893400,1735344641961,-151.0,0.00020315,2]
[346893402,1735344641971,-835.55567,0.00020315,2]
[346893404,1735344641980,-835.55567,0.00020315,2]
[346893406,1735344641989,-1386.619326,0.00020315,2]
[346893408,1735344642000,-1386.619326,0.00020315,2]
[346893411,1735344642010,-155.320478,0.00020315,2]
[346893413,1735344642019,-155.320478,0.00020315,2]
[346893414,1735344642028,-151.0,0.00020315,2]
[346893417,1735344642039,-151.0,0.00020315,2]
[346893419,1735344642048,-243.1722,0.00020315,2]
[346893421,1735344642062,-243.1722,0.00020315,2]
[346893423,1735344642071,-506.198995,0.00020315,2]
[346893425,1735344642080,-243.1722,0.00020315,2]
[346893427,1735344642089,-243.1722,0.00020315,2]
[346893429,1735344642098,-506.198995,0.00020315,2]
[346893431,1735344642108,-177.882791,0.00020315,2]
[346893433,1735344642117,-177.882791,0.00020315,2]
[346893435,1735344642126,-199.105615,0.00020315,2]
[346893437,1735344642135,-199.105615,0.00020315,2]
[346893439,1735344642145,-222.0,0.0002032,2]
[346893441,1735344642156,-332.95954514,0.0002033,4]
[346893443,1735344642166,-721.75048209,0.0002033,2]
[346893452,1735344642236,-500.0,0.00020334,2]
[346893454,1735344642248,-500.0,0.00020334,2]
[346893456,1735344642256,-500.0,0.00020334,2]
[346893458,1735344642266,-355.73180257,0.00020334,2]
[346893460,1735344642275,-500.0,0.00020334,2]
[346893462,1735344642284,-418.95523688,0.00020334,2]
[346893464,1735344642294,-151.0,0.00020334,2]
[346893466,1735344642303,-151.0,0.00020334,2]
[346893468,1735344642312,-151.0,0.00020334,2]
[346893470,1735344642322,-314.907907,0.00020334,2]
[346893471,1735344642331,-314.907907,0.00020334,2]
[346893474,1735344642341,-500.0,0.00020334,2]
[346893475,1735344642350,-2068.08,0.00020334,2]
[346893477,1735344642359,-500.0,0.00020334,2]
[346893479,1735344642369,-500.0,0.00020334,2]
[346893481,1735344642379,-153.500701,0.00020335,2]
[346893485,1735344642388,-300.12,0.00020335,10]
[346893486,1735344642398,-300.12,0.00020335,10]
[346893488,1735344642407,-199.26180557,0.00020335,5]
[346893492,1735344642416,-150.63967868,0.00020335,10]
[346893495,1735344642426,-150.2,0.00020335,10]
[346893497,1735344642435,-300.06,0.00020335,2]
[346893500,1735344642445,-251.67317389,0.00020335,10]
[346893502,1735344642455,-293.70479497,0.00020335,10]
[346893505,1735344642465,-151.0,0.00020335,7]
[346893510,1735344642475,-150.22620272,0.00020335,10]
[346893512,1735344642485,-300.12,0.00020335,10]
[346893515,1735344642496,-150.57747209,0.00020335,10]
[346893517,1735344642505,-300.12,0.00020335,10]
[346893519,1735344642514,-500.0,0.00020335,10]
[346893521,1735344642524,-500.0,0.00020335,10]
[346893523,1735344642533,-150.2,0.00020335,2]
[346893526,1735344642543,-300.06,0.00020335,10]
[346893529,1735344642552,-300.06,0.00020335,10]
[346893531,1735344642562,-300.06,0.00020335,10]
[346893533,1735344642572,-721.75048209,0.00020347,2]
[346893535,1735344642583,-151.0,0.00020358,2]
[346893537,1735344642594,-157.430716,0.00020358,2]
[346893539,1735344642604,-151.0,0.00020358,2]
[346893541,1735344642615,-151.0,0.00020358,2]
[346893543,1735344642624,-151.0,0.00020358,2]
[346893545,1735344642634,-151.0,0.00020358,2]
[346893547,1735344642643,-151.0,0.00020358,2]
[346893549,1735344642653,-151.0,0.00020358,2]
[346893551,1735344642662,-151.0,0.00020358,2]
[346893553,1735344642672,-151.0,0.00020358,2]
[346893555,1735344642681,-151.0,0.00020358,2]
[346893557,1735344642691,-250.038406,0.00020358,2]
[346893559,1735344642700,-244.220757,0.00020358,2]
[346893561,1735344642710,-244.220757,0.00020358,2]
[346893563,1735344642719,-244.220757,0.00020358,2]
[346893565,1735344642728,-244.220757,0.00020358,2]
[346893567,1735344642737,-244.220757,0.00020358,2]
[346893569,1735344642749,-244.220757,0.00020358,2]
[346893571,1735344642758,-244.220757,0.00020358,2]
[346893573,1735344642767,-244.220757,0.00020358,2]
[346893575,1735344642776,-244.220757,0.00020358,2]
[346893577,1735344642785,-244.220757,0.00020358,2]
[346893579,1735344642795,-314.907907,0.00020358,2]
[346893581,1735344642803,-244.220757,0.00020358,2]
[346893583,1735344642812,-314.907907,0.00020358,2]
[346893585,1735344642822,-244.220757,0.00020358,2]
[346893587,1735344642831,-314.907907,0.00020358,2]
[346893589,1735344642840,-244.220757,0.00020358,2]
[346893591,1735344642851,-314.907907,0.00020358,2]
[346893593,1735344642862,-244.220763,0.00020358,2]
[346893596,1735344642879,-314.907907,0.00020358,2]
[346893599,1735344642896,-314.907907,0.00020358,2]
[346893601,1735344642909,-314.907907,0.00020358,2]
[346893604,1735344642925,-314.907907,0.00020358,2]
[346893607,1735344642940,-314.907907,0.00020358,2]
[346893610,1735344642955,-314.907907,0.00020358,2]
[346893612,1735344642972,-314.907907,0.00020358,2]
[346893615,1735344642986,-314.907907,0.00020358,2]
[346893617,1735344643002,-314.907907,0.00020358,2]
[346893620,1735344643016,-314.907911,0.00020358,2]
[346893623,1735344643031,-273.599115,0.00020358,2]
[346893625,1735344643043,-273.599115,0.00020358,2]
[346893627,1735344643056,-476.428444,0.00020358,2]
[346893630,1735344643070,-297.435777,0.00020358,2]
[346893633,1735344643085,-721.75048209,0.00020363,2]
[346893635,1735344643100,-500.0,0.00020373,2]
[346893638,1735344643116,-500.0,0.00020373,2]
[346893640,1735344643131,-500.0,0.00020373,2]
[346893643,1735344643142,-5000.0,0.00020386,14]
[346893645,1735344643153,-151.0,0.00020386,2]
[346893649,1735344643171,-151.0,0.00020386,2]
[346893651,1735344643185,-151.0,0.00020386,2]
[346893653,1735344643196,-835.55567,0.00020386,2]
[346893656,1735344643208,-151.0,0.00020386,2]
[346893658,1735344643222,-835.55567,0.00020386,2]
[346893661,1735344643233,-243.1722,0.00020386,2]
[346893663,1735344643247,-243.1722,0.00020386,2]
[346893665,1735344643260,-9067.38,0.000204,2]
[346893667,1735344643272,-24222.59,0.000204,2]
[346893669,1735344643284,-29395.65,0.000204,2]
[346893672,1735344643296,-1386.619326,0.000204,2]
[346893674,1735344643308,-151.0,0.000204,2]
[346893676,1735344643321,-1386.619326,0.000204,2]
[346893679,1735344643334,-155.320478,0.000204,2]
[346893681,1735344643347,-155.320478,0.000204,2]
[346893683,1735344643359,-151.0,0.000204,2]
[346893686,1735344643372,-151.0,0.000204,2]
[346893688,1735344643383,-151.0,0.000204,2]
[346893690,1735344643396,-506.198995,0.000204,2]
[346893693,1735344643409,-506.198995,0.000204,2]
[346893695,1735344643422,-177.882791,0.000204,2]
[346893698,1735344643434,-177.882791,0.000204,2]
[346893700,1735344643447,-213.880477,0.000204,2]
[346893702,1735344643457,-213.880477,0.000204,2]
[346893704,1735344643467,-199.105615,0.000204,2]
[346893706,1735344643476,-199.105615,0.000204,2]
[346893708,1735344643485,-182.262766,0.000204,2]
[346893710,1735344643497,-182.262766,0.000204,2]
[346893712,1735344643506,-151.0,0.000204,2]
[346893714,1735344643515,-227.356262,0.000204,2]
[346893716,1735344643524,-151.0,0.000204,2]
[346893718,1735344643533,-168.050062,0.000204,2]
[346893720,1735344643542,-168.050062,0.000204,2]
[346893722,1735344643551,-533.455618,0.000204,2]
[346893724,1735344643560,-533.455618,0.000204,2]
[346893726,1735344643569,-400.0,0.00020447,2]
[346893728,1735344643579,-191993.0904857,0.00020463,10]
[346893820,1735344644481,-7719.47779551,0.00020463,10]
[346893884,1735344645163,-1467.82393359,0.00020463,10]
[346893885,1735344645174,-4204.99474082,0.00020463,10]
[346893886,1735344645185,-8272.70687452,0.00020463,10]
[346893914,1735344648189,-61056.79273644,0.00020463,10]
[346893915,1735344648201,-2605.67426346,0.00020463,10]
[346893916,1735344648236,-920.40943778,0.00020463,10]
[346893917,1735344648250,-10236.76489326,0.00020463,10]
[346893918,1735344648322,-1742.75319792,0.00020463,10]
[346893919,1735344648367,-26.36702269,0.00020463,10]
[346893920,1735344648378,-39423.08109644,0.00020463,10]
[346893921,1735344648390,-3934.68911654,0.00020463,10]
[346893922,1735344648427,-152.0,0.00020462,2]
[346893923,1735344648436,-8318.69,0.00020463,10]
[346893924,1735344648447,-1341.78309157,0.00020463,10]
[346893925,1735344648459,-15154.29203573,0.00020463,10]
[346893926,1735344649430,-94877.24694169,0.00020463,10]
[346893927,1735344649441,-586.94852321,0.00020463,10]
[346893929,1735344919326,500.0,9.155e-05,2]
[346893930,1735344934728,500.0,9.155e-05,2]
[346893931,1735344949596,500.0,9.155e-05,2]
[346893932,1735344964693,205.06580116,9.155e-05,2]
[346893933,1735345043281,500.0,9.155e-05,2]
[346893935,1735345058502,500.0,9.155e-05,2]
[346893936,1735345073759,500.0,9.155e-05,2]
[346893937,1735345089220,405.80476232,9.155e-05,2]
[346893941,1735345554128,-175.54980118,9.531e-05,2]
[346893942,1735345600756,5176.755206,8.728e-05,2]
[346893943,1735345650092,-644.06143211,9.531e-05,2]
[346893944,1735345711079,2479.80481129,0.0002,120]
[346893945,1735345756085,-216.1144201,9.531e-05,2]
[346893946,1735345756105,-201.55788218,9.724e-05,2]
[346893947,1735345756126,-300.0,9.724e-05,2]
[346893948,1735345756147,-500.0,9.725e-05,2]
[346893949,1735345756168,-500.0,9.725e-05,2]
[346893950,1735345756293,-500.0,9.725e-05,2]
[346893951,1735345756316,-333.2550055,9.725e-05,2]
[346893952,1735345757133,-166.7449945,9.725e-05,2]
[346893953,1735345757157,-500.0,9.725e-05,2]
[346893954,1735345757179,-500.0,9.725e-05,2]
[346893955,1735345757202,-500.0,9.725e-05,2]
[346893956,1735345757224,-500.0,9.725e-05,2]
[346893957,1735345757247,-500.0,9.725e-05,2]
[346893958,1735345757269,-500.0,9.725e-05,2]
[346893959,1735345757291,-500.0,9.725e-05,2]
[346893960,1735345757315,-500.0,9.725e-05,2]
[346893961,1735345757336,-218.12554487,9.725e-05,2]
[346893962,1735345757358,-500.0,9.725e-05,2]
[346893963,1735345757380,-500.0,9.725e-05,2]
[346893964,1735345757403,-356.80971489,9.725e-05,2]
[346893965,1735345757425,-500.0,9.725e-05,2]
[346893966,1735345757447,-500.0,9.725e-05,2]
[346893967,1735345757470,-500.0,9.725e-05,2]
[346893968,1735345757491,-500.0,9.725e-05,2]
[346893969,1735345757513,-500.0,9.725e-05,2]
[346893970,1735345757538,-500.0,9.725e-05,2]
[346893971,1735345757560,-500.0,9.725e-05,2]
[346893972,1735345757582,-500.0,9.725e-05,2]
[346893973,1735345757606,-500.0,9.725e-05,2]
[346893974,1735345757628,-500.0,9.725e-05,2]
[346893975,1735345757651,-1705.22,9.725e-05,2]
[346893976,1735345757672,-500.0,9.725e-05,2]
[346893977,1735345757694,-500.0,9.725e-05,2]
[346893978,1735345757717,-500.0,9.725e-05,2]
[346893979,1735345757739,-512.292235,9.725e-05,2]
[346893980,1735345757761,-500.0,9.725e-05,2]
[346893981,1735345757783,-500.0,9.725e-05,2]
[346893982,1735345757805,-500.0,9.725e-05,2]
[346893983,1735345757827,-500.0,9.725e-05,2]
[346893984,1735345757849,-500.0,9.725e-05,2]
[346893985,1735345757872,-500.0,9.725e-05,2]
[346893986,1735345757893,-500.0,9.725e-05,2]
[346893987,1735345757914,-500.0,9.725e-05,2]
[346893988,1735345757935,-500.0,9.725e-05,2]
[346893989,1735345757956,-500.0,9.725e-05,2]
[346893990,1735345757979,-500.0,9.725e-05,2]
[346893991,1735345758002,-433.62195728,9.725e-05,2]
[346893992,1735345758031,-66.37804272,9.725e-05,2]
[346893993,1735345758051,-500.0,9.726e-05,2]
[346893994,1735345758074,-500.0,9.726e-05,2]
[346893995,1735345758095,-500.0,9.726e-05,2]
[346893996,1735345758116,-500.0,9.726e-05,2]
[346893997,1735345758137,-283.16970756,9.726e-05,2]
[346893998,1735345758159,-314.87598204,9.726e-05,2]
[346893999,1735345758179,-500.0,9.726e-05,2]
[346894000,1735345758199,-500.0,9.726e-05,2]
[346894001,1735345758221,-500.0,9.726e-05,2]
[346894002,1735345758241,-500.0,9.726e-05,2]
[346894003,1735345758262,-500.0,9.726e-05,2]
[346894004,1735345758283,-500.0,9.726e-05,2]
[346894005,1735345758304,-500.0,9.726e-05,2]
[346894006,1735345758326,-500.0,9.726e-05,2]
[346894007,1735345758347,-500.0,9.726e-05,2]
[346894008,1735345758367,-500.0,9.726e-05,2]
[346894009,1735345758388,-500.0,9.726e-05,2]
[346894010,1735345758409,-532.0,9.726e-05,2]
[346894011,1735345758431,-500.0,9.726e-05,2]
[346894012,1735345758452,-500.0,9.726e-05,2]
[346894013,1735345758475,-163.5900239,9.726e-05,2]
[346894014,1735345759172,-336.4099761,9.726e-05,2]
[346894015,1735345759194,-500.0,9.726e-05,2]
[346894016,1735345759217,-500.0,9.726e-05,2]
[346894017,1735345759239,-500.0,9.726e-05,2]
[346894018,1735345759261,-500.0,9.726e-05,2]
[346894019,1735345759284,-500.0,9.726e-05,2]
[346894020,1735345759306,-408.49104663,9.726e-05,2]
[346894021,1735345759328,-500.0,9.726e-05,2]
[346894022,1735345759350,-500.0,9.726e-05,2]
[346894023,1735345759373,-500.0,9.726e-05,2]
[346894024,1735345759394,-500.0,9.726e-05,2]
[346894025,1735345759415,-500.0,9.726e-05,2]
[346894026,1735345759438,-500.0,9.726e-05,2]
[346894027,1735345759460,-500.0,9.726e-05,2]
[346894028,1735345759482,-326.23176336,9.726e-05,2]
[346894029,1735345759505,-500.0,9.726e-05,2]
[346894030,1735345759526,-500.0,9.726e-05,2]
[346894031,1735345759547,-500.0,9.726e-05,2]
[346894032,1735345759569,-500.0,9.726e-05,2]
[346894033,1735345759591,-500.0,9.726e-05,2]
[346894034,1735345759613,-500.0,9.726e-05,2]
[346894035,1735345759635,-500.0,9.726e-05,2]
[346894036,1735345759657,-500.0,9.726e-05,2]
[346894037,1735345759679,-500.0,9.726e-05,2]
[346894038,1735345759700,-500.0,9.726e-05,2]
[346894039,1735345759722,-500.0,9.726e-05,2]
[346894040,1735345759744,-500.0,9.726e-05,2]
[346894041,1735345759765,-500.0,9.726e-05,2]
[346894042,1735345759787,-500.0,9.726e-05,2]
[346894043,1735345759807,-500.0,9.726e-05,2]
[346894044,1735345759828,-500.0,9.726e-05,2]
[346894045,1735345759849,-500.0,9.726e-05,2]
[346894046,1735345759871,-500.0,9.726e-05,2]
[346894047,1735345759892,-500.0,9.726e-05,2]
[346894048,1735345759913,-500.0,9.726e-05,2]
[346894049,1735345760033,-500.0,9.726e-05,2]
[346894050,1735345760055,-607.89507429,9.726e-05,2]
[346894051,1735345760079,-500.0,9.726e-05,2]
[346894052,1735345760100,-404.95498211,9.726e-05,2]
[346894053,1735345760121,-500.0,9.726e-05,2]
[346894054,1735345760143,-500.0,9.726e-05,2]
[346894055,1735345760165,-500.0,9.726e-05,2]
[346894056,1735345760187,-500.0,9.726e-05,2]
[346894057,1735345760210,-500.0,9.726e-05,2]
[346894058,1735345760233,-500.0,9.726e-05,2]
[346894059,1735345760255,-380.38786708,9.726e-05,2]
[346894060,1735345760280,-500.0,9.726e-05,2]
[346894061,1735345760302,-500.0,9.726e-05,2]
[346894062,1735345760324,-286.77231633,9.726e-05,2]
[346894063,1735345760345,-500.0,9.726e-05,2]
[346894064,1735345760368,-500.0,9.726e-05,2]
[346894065,1735345760390,-500.0,9.726e-05,2]
[346894066,1735345760413,-500.0,9.726e-05,2]
[346894067,1735345760435,-364.32590328,9.726e-05,2]
[346894068,1735345760459,-500.0,9.726e-05,2]
[346894069,1735345760483,-500.0,9.726e-05,2]
[346894070,1735345760507,-417.75753863,9.726e-05,2]
[346894071,1735345760530,-500.0,9.726e-05,2]
[346894072,1735345760552,-500.0,9.726e-05,2]
[346894073,1735345760575,-447.40635656,9.726e-05,2]
[346894074,1735345760598,-500.0,9.726e-05,2]
[346894075,1735345760620,-500.0,9.726e-05,2]
[346894076,1735345760641,-500.0,9.726e-05,2]
[346894077,1735345760662,-500.0,9.726e-05,2]
[346894078,1735345760684,-500.0,9.726e-05,2]
[346894079,1735345760705,-500.0,9.726e-05,2]
[346894080,1735345760727,-500.0,9.726e-05,2]
[346894081,1735345760748,-500.0,9.726e-05,2]
[346894082,1735345760771,-500.0,9.726e-05,2]
[346894083,1735345760792,-471.37574467,9.726e-05,2]
[346894084,1735345760814,-501.47448581,9.726e-05,2]
[346894085,1735345760837,-500.0,9.726e-05,2]
[346894086,1735345760859,-321.27902234,9.726e-05,2]
[346894087,1735345760882,-500.0,9.726e-05,2]
[346894088,1735345760905,-500.0,9.726e-05,2]
[346894089,1735345760927,-500.0,9.726e-05,2]
[346894090,1735345760949,-500.0,9.726e-05,2]
[346894091,1735345760973,-500.0,9.726e-05,2]
[346894092,1735345760995,-500.0,9.726e-05,2]
[346894093,1735345761018,-500.0,9.726e-05,2]
[346894094,1735345761041,-500.0,9.726e-05,2]
[346894095,1735345761064,-500.0,9.726e-05,2]
[346894096,1735345761091,-500.0,9.726e-05,2]
[346894097,1735345761115,-500.0,9.726e-05,2]
[346894098,1735345761146,-500.0,9.726e-05,2]
[346894099,1735345761173,-500.0,9.726e-05,2]
[346894100,1735345761196,-174.68749629,9.726e-05,2]
[346894101,1735345761219,-500.0,9.726e-05,2]
[346894102,1735345761242,-500.0,9.726e-05,2]
[346894103,1735345761265,-500.0,9.726e-05,2]
[346894104,1735345761287,-500.0,9.726e-05,2]
[346894105,1735345761309,-478.18016376,9.726e-05,2]
[346894106,1735345761332,-500.0,9.726e-05,2]
[346894107,1735345761354,-503.70124032,9.726e-05,2]
[346894108,1735345761377,-500.0,9.726e-05,2]
[346894109,1735345761401,-500.0,9.726e-05,2]
[346894110,1735345761424,-500.0,9.726e-05,2]
[346894111,1735345761448,-500.0,9.726e-05,2]
[346894112,1735345761471,-500.0,9.726e-05,2]
[346894113,1735345761493,-500.0,9.726e-05,2]
[346894114,1735345761515,-500.0,9.726e-05,2]
[346894115,1735345761538,-500.0,9.726e-05,2]
[346894116,1735345761561,-500.0,9.726e-05,2]
[346894117,1735345761583,-500.0,9.726e-05,2]
[346894118,1735345761607,-500.0,9.726e-05,2]
[346894119,1735345761631,-500.0,9.726e-05,2]
[346894120,1735345761654,-500.0,9.726e-05,2]
[346894121,1735345761677,-500.0,9.726e-05,2]
[346894122,1735345761700,-500.0,9.726e-05,2]
[346894123,1735345761727,-611.4175025,9.726e-05,2]
[346894124,1735345761752,-500.0,9.726e-05,2]
[346894125,1735345761776,-500.0,9.726e-05,2]
[346894126,1735345761803,-500.0,9.726e-05,2]
[346894127,1735345761827,-500.0,9.726e-05,2]
[346894128,1735345761850,-500.0,9.726e-05,2]
[346894129,1735345761873,-500.0,9.726e-05,2]
[346894130,1735345761898,-500.0,9.726e-05,2]
[346894131,1735345761921,-500.0,9.726e-05,2]
[346894132,1735345761944,-500.0,9.726e-05,2]
[346894133,1735345761968,-500.0,9.726e-05,2]
[346894134,1735345761991,-500.0,9.726e-05,2]
[346894135,1735345762014,-500.0,9.726e-05,2]
[346894136,1735345762036,-500.0,9.726e-05,2]
[346894137,1735345762059,-500.5481474,9.726e-05,2]
[346894138,1735345762085,-167.3717439,9.726e-05,2]
[346894139,1735345762108,-500.0,9.726e-05,2]
[346894140,1735345762133,-12782.07,9.726e-05,2]
[346894141,1735345762157,-500.0,9.726e-05,2]
[346894142,1735345762180,-500.0,9.726e-05,2]
[346894143,1735345762204,-500.0,9.726e-05,2]
[346894144,1735345762228,-500.0,9.726e-05,2]
[346894145,1735345762251,-500.0,9.726e-05,2]
[346894146,1735345762275,-500.0,9.726e-05,2]
[346894147,1735345762297,-500.0,9.726e-05,2]
[346894148,1735345762319,-500.0,9.726e-05,2]
[346894149,1735345762343,-500.0,9.726e-05,2]
[346894150,1735345762364,-500.0,9.726e-05,2]
[346894151,1735345762387,-500.0,9.726e-05,2]
[346894152,1735345762409,-500.0,9.726e-05,2]
[346894153,1735345762436,-500.0,9.726e-05,2]
[346894154,1735345762459,-500.0,9.726e-05,2]
[346894155,1735345762606,-500.0,9.727e-05,2]
[346894156,1735345762628,-500.0,9.727e-05,2]
[346894157,1735345762650,-500.0,9.727e-05,2]
[346894158,1735345762673,-500.0,9.727e-05,2]
[346894159,1735345762695,-500.0,9.727e-05,2]
[346894160,1735345762719,-500.0,9.727e-05,2]